Cogmind - Beta 16.1 @@@ ROGUE MODE // 2026.04.15 @ 10:44:12 Player: Robotson Result: Destroyed by Y-45 Defender with Beam Rifle Performance ------------- Evolutions (1) 500 Regions Visited (3) 600 Robots Destroyed (9) 45 Value Destroyed (167) 167 Prototype IDs (4) 80 Alien Tech Used (0) 0 Bonus (0) 0 TOTAL SCORE: 1392 Bonus ------- None Cogmind --------- Core Integrity 0/400 Matter 300/300 Energy 98/100 System Corruption 0% Temperature Cool (9) Movement Core (50) Location -9/Storage Parts ------- > --- POWER (1) -------- (None) > --- PROPULSION (2) --- (None) > --- UTILITY (4) ------ (None) > --- WEAPON (2) ------- (None) > --- INVENTORY (5) ---- Heavy Ion Engine Visual Processing Unit ECM Suite Field Recycling Unit (0) Light EM Pulse Cannon Peak State ------------ > --- POWER ------------ Light Ion Engine > --- PROPULSION ------- Aluminum Leg Aluminum Leg > --- UTILITY ---------- Small Storage Unit Seismic Detector ECM Suite Hardened Light Armor Plating > --- WEAPON ----------- Light Assault Rifle Light Assault Rifle > --- INVENTORY -------- Hover Unit Hover Unit Hover Unit Visual Processing Unit Seismic Detector Field Recycling Unit Light EM Pulse Cannon [Rating: 11] Favorites ----------- Power Light Ion Engine Engine Light Ion Engine Propulsion Aluminum Leg Leg Aluminum Leg Hover Unit Hover Unit Utility Small Storage Unit Device Tractor Beam Storage Small Storage Unit Processor Transport Network Coupler Protection Hardened Light Armor Plating Weapon Light Assault Rifle Energy Gun Small Laser Ballistic Gun Light Assault Rifle Build | -11 -10 -9 -9 ------- Run | Yrd Mat Mat Sto Slots Evolved 2 | . . 2 . Power . | . . . . Propulsion . | . . . . Utility 2 | . . 2 . Weapon . | . . . . Parts Attached 16 | 7 . 8 1 Power 2 | 1 . 1 . Engine 2 | 1 . 1 . Core . | . . . . Reactor . | . . . . Propulsion 5 | 2 . 2 1 Treads . | . . . . Leg 2 | 2 . . . Wheel . | . . . . Hover 3 | . . 2 1 Flight . | . . . . Utility 6 | 2 . 4 . Device 3 | 1 . 2 . Storage 1 | 1 . . . Processor 1 | . . 1 . Hackware . | . . . . Protection 1 | . . 1 . Artifact . | . . . . Weapon 3 | 2 . 1 . Energy Gun 1 | 1 . . . Energy Cannon . | . . . . Ballistic Gun 2 | 1 . 1 . Ballistic Cannon . | . . . . Launcher . | . . . . Special Weapon . | . . . . Impact Weapon . | . . . . Slashing Weapon . | . . . . Piercing Weapon . | . . . . Special Melee Weapon . | . . . . Unidentified Prototypes . | . . . . Parts Lost 12 | . 1 2 9 Power 2 | . 1 . 1 Propulsion 5 | . . 1 4 Utility 3 | . . 1 2 Weapon 2 | . . . 2 Highest Loss Streak 9 | . 1 1 9 To Critical Strikes . | . . . . Average Backups 4 | . 5 7 5 Power . | . . . . Propulsion 1 | . . 2 . Utility 2 | . 1 3 3 Weapon 1 | . 3 1 1 Tool/Special . | . . . . Unused Backups 10 | . 5 . 5 Power 1 | . . . 1 Propulsion . | . . . . Utility 3 | . . . 3 Weapon 6 | . 5 . 1 Tool/Special . | . . . . Average Slot Usage (%) 86 | . 99 89 51 Engine 8 | . 13 3 5 Leg 19 | . 28 19 . Hover 2 | . . 2 9 Device 14 | . 14 17 9 Storage 11 | . 14 11 8 Processor 2 | . . 6 . Protection 4 | . . 8 8 Energy Gun 8 | . 14 4 . Ballistic Gun 14 | . 14 17 10 Peak Build Rating 11 | 7 7 11 10 Average Rating 7 | 5 6 9 5 On Entrance 5 | . 7 6 10 Avg Prop Armor Cover (%) 7 | . . . 7 Naked Turns 27 | . . . 27 Heaviest Build 18 | 11 11 18 18 Greatest Support 20 | 20 20 20 12 Greatest Overweight (x) 4 | 2 . 1 4 Average Overweight (x) . | . . . . Largest Inventory Capacity 8 | 8 8 8 8 Average Capacity 7 | 7 8 8 7 Most Carried 8 | . 8 8 6 Average Carried 5 | . 5 7 5 Final Capacity 8 | 8 8 8 5 Final Carried 7 | . 7 6 5 Class Distribution -------------------- 100% | Mutant Dominant Class ---------------- Mutant | -10/Materials Mutant | -9/Materials Mutant | -9/Storage Resources | -11 -10 -9 -9 ----------- Run | Yrd Mat Mat Sto Matter Collected 382 | 255 33 94 . Remotely 118 | 85 33 . . Salvage Created 322 | 85 127 110 . Parts 20 | 2 9 9 . Haulers Intercepted 1 | . 1 . . Recyclers Shooed 1 | . 1 . . Parts Field Recycled . | . . . . Retrieved Matter . | . . . . Parts Self-Destructed . | . . . . Prevented . | . . . . Parts Restored . | . . . . Kills | -11 -10 -9 -9 ------- Run | Yrd Mat Mat Sto Combat Hostiles Destroyed 6 | . 2 4 . Guns 6 | . 2 4 . Classes Destroyed 6 | 1 3 2 . Hauler 1 | . 1 . . Recycler 1 | 1 . . . Watcher 1 | . 1 . . Swarmer 3 | . . 3 . Grunt 2 | . 2 . . Sentry 1 | . . 1 . Best Kill Streak 4 | 1 4 4 . Combat Bots Only 4 | . 2 4 . Max Kills in Single Turn 1 | 1 1 1 . Gunslinging . | . . . . Exploded . | . . . . Melee . | . . . . Uniques/NPCs Destroyed . | . . . . Combat | -11 -10 -9 -9 -------- Run | Yrd Mat Mat Sto Hostile Shots Fired 158 | . 28 35 95 Missed 52 | . 12 10 30 Hits 106 | . 16 25 65 Projectile 106 | . 16 25 65 Critical Strikes 2 | . . . 2 Damage Taken 1308 | . 175 290 843 Core 450 | . 42 23 385 Absorbed by Shields 39 | . . . 39 Core Remaining (%) 91 | 100 83 . . Volleys Fired 32 | 5 13 10 4 Largest 2 | 2 2 2 2 Hottest 60 | 60 60 40 40 Shots Fired 64 | 10 26 20 8 Gun 64 | 10 26 20 8 Cannon . | . . . . Launcher . | . . . . Special . | . . . . Kinetic 46 | 5 13 20 8 Thermal 18 | 5 13 . . Explosive . | . . . . Electromagnetic . | . . . . Robot Hit Streak 10 | 4 10 5 5 Robot Miss Streak 4 | 2 4 2 3 Penetration Max . | . . . . Secondary Targets 1 | . . 1 . Max Gunslinging Chain 1 | . . 1 . Shots Hit Robots 36 | 6 14 11 5 Core Hits 20 | 3 7 8 2 Critical Kills 1 | . 1 . . Critical Parts Destroyed . | . . . . Critical Strikes 1 | . 1 . . Destroy 1 | . 1 . . Melee Attacks . | . . . . Impact . | . . . . Slashing . | . . . . Piercing . | . . . . Sneak Attacks . | . . . . Combat Hostiles . | . . . . Follow-up Attacks . | . . . . Damage Inflicted 360 | 51 173 89 47 Guns 351 | 51 164 89 47 Cannons . | . . . . Explosions . | . . . . Melee . | . . . . Ramming 9 | . 9 . . Kinetic 241 | 29 76 89 47 Thermal 110 | 22 88 . . Explosive . | . . . . Electromagnetic . | . . . . Impact . | . . . . Slashing . | . . . . Piercing . | . . . . Highest Corruption . | . . . . Average Corruption . | . . . . Corruption Purged . | . . . . Corruption Blocked . | . . . . Overload Shots . | . . . . Overflow Damage . | . . . . Projectiles . | . . . . Explosions . | . . . . Melee . | . . . . Knockbacks 1 | . 1 . . Impact 1 | . 1 . . Kinetic . | . . . . Secondary . | . . . . Self-Inflicted Damage . | . . . . Shots . | . . . . Rammed . | . . . . Targets Rammed 1 | . 1 . . Kicked 1 | . 1 . . Crushed . | . . . . Highest Temperature 68 | 40 64 6 68 Average Temperature 28 | 19 31 4 35 Received Heat Transfer 601 | . 96 78 427 Siege Activations . | . . . . Martial Activations . | . . . . Shielding Activations . | . . . . Robots Disrupted . | . . . . Combat Hostiles . | . . . . Robots Corrupted . | . . . . Combat Hostiles . | . . . . Parts Fried . | . . . . Impact Corruptions . | . . . . Robots Melted . | . . . . Combat Hostiles . | . . . . Parts Melted . | . . . . Heat Transferred 250 | 50 200 . . Parts Sabotaged . | . . . . Parts Stolen . | . . . . Parts Stripped . | . . . . Power Chain Reactions . | . . . . Alert | -11 -10 -9 -9 ------- Run | Yrd Mat Mat Sto Maximum Alert Level . | . . . . Low Security (%) 100 | 100 100 100 100 Level 1 . | . . . . Level 2 . | . . . . Level 3 . | . . . . Level 4 . | . . . . Level 5 . | . . . . High Security . | . . . . Max Security . | . . . . Peak Influence 80 | 5 44 80 12 Initial 12 | . . . 12 Average 11 | . 10 24 2 Influence Increases 161 | 5 56 100 . Destroy 0b10 Robot/C 120 | . 40 80 . Destroy 0b10 Robot/NC 15 | 5 10 . . Destroy Leader 24 | . 4 20 . Successful Hack 2 | . 2 . . Influence Decreases 161 | 5 56 70 30 Entered New Map 18 | . . . 18 Time Decay 117 | 5 52 50 10 Lost Part 26 | . 4 20 2 Squads Dispatched 3 | . 2 . 1 Investigation 1 | . 1 . . Extermination . | . . . . Reinforcement 2 | . 1 . 1 Assault . | . . . . Garrison . | . . . . Intercept . | . . . . Searches Triggered . | . . . . Construction Impeded . | . . . . Haulers Reinforced . | . . . . Active Scanning Responses . | . . . . Cargo Convoy Interrupts . | . . . . Stealth | -11 -10 -9 -9 --------- Run | Yrd Mat Mat Sto Distress Signals 1 | . . 1 . Communications Jammed . | . . . . Distress Signals . | . . . . Times Spotted 23 | . 9 8 6 Peak Tracking Total 5 | . 5 4 5 Tactical Retreats . | . . . . Traps | -11 -10 -9 -9 ------- Run | Yrd Mat Mat Sto Traps Triggered 2 | . 1 . 1 Indirectly . | . . . . Trap Hack Attempts . | . . . . Triggered . | . . . . Disarmed . | . . . . Reprogrammed . | . . . . Reused . | . . . . Traps Extracted . | . . . . Installed . | . . . . Triggered . | . . . . Machines | -11 -10 -9 -9 ---------- Run | Yrd Mat Mat Sto Machines Disabled . | . . . . Max in Single Turn . | . . . . Machines Repaired . | . . . . Machines Dismantled . | . . . . Machines Sabotaged . | . . . . Overloaded Fab Kills . | . . . . Hacking | -11 -10 -9 -9 --------- Run | Yrd Mat Mat Sto Machines Accessed 2 | . 2 . . Terminals 2 | . 2 . . Fabricators . | . . . . Repair Stations . | . . . . Recycling Units . | . . . . Scanalyzers . | . . . . Garrison Access . | . . . . Total Hacks 7 | . 7 . . Successful 3 | . 3 . . Failed 4 | . 4 . . Catastrophic . | . . . . Database Lockouts . | . . . . Manual . | . . . . Terminals 7 | . 7 . . Fabricators . | . . . . Repair Stations . | . . . . Recycling Units . | . . . . Scanalyzers . | . . . . Garrison Access . | . . . . Terminal Hacks 3 | . 3 . . Record 1 | . 1 . . Prototype ID Bank 2 | . 2 . . Fabricator Hacks . | . . . . Repair Station Hacks . | . . . . Recycling Unit Hacks . | . . . . Scanalyzer . | . . . . Garrison Access Hacks . | . . . . Unauthorized Hacks . | . . . . Terminals . | . . . . Fabricators . | . . . . Repair Stations . | . . . . Recycling Units . | . . . . Scanalyzers . | . . . . Garrison Access . | . . . . Data Cores Recovered . | . . . . Used . | . . . . Hacking Detections 2 | . 2 . . Full Trace Events 1 | . 1 . . Feedback Events . | . . . . Feedback Blocked . | . . . . Robot Schematics Acquired . | . . . . Robots Built . | . . . . Authchips . | . . . . Time . | . . . . Total Robot Build Rating . | . . . . Part Schematics Acquired . | . . . . Parts Built . | . . . . Authchips . | . . . . Time . | . . . . Total Part Build Rating . | . . . . Part Studies Acquired . | . . . . Parts Repaired . | . . . . Time . | . . . . Parts Recycled . | . . . . Recycled Matter . | . . . . Retrieved Matter . | . . . . Retrieved Components . | . . . . Parts Scanalyzed . | . . . . Part Schematics Acquired . | . . . . Parts Damaged . | . . . . Bothacking | -11 -10 -9 -9 ------------ Run | Yrd Mat Mat Sto Used RIF Installer . | . . . . Robots Hacked . | . . . . Non-combat . | . . . . Combat . | . . . . Robot Hacks Applied . | . . . . Relay Couplers Released . | . . . . Fabnet Peak Effective % . | . . . . Robots Rewired . | . . . . Allies Hacked . | . . . . Hacks Repelled . | . . . . Allies | -11 -10 -9 -9 -------- Run | Yrd Mat Mat Sto Total Allies . | . . . . Largest Group . | . . . . Highest-Rated Group . | . . . . Highest-Rated Ally . | . . . . Total Orders . | . . . . Ally Attacks . | . . . . Total Damage . | . . . . Kills . | . . . . Allies Corrupted . | . . . . Allies Melted . | . . . . Intel | -11 -10 -9 -9 ------- Run | Yrd Mat Mat Sto Active Infowar (turns) 248 | . . 186 62 Seismic 209 | . . 186 23 T.N.C. 108 | . . 108 . ECM 120 | . . 58 62 Robot Analysis Total . | . . . . Derelict Logs Recovered . | . . . . Drone Launches . | . . . . Drone Recoveries . | . . . . Exploration | -11 -10 -9 -9 ------------- Run | Yrd Mat Mat Sto Turns Passed 652 | 94 261 186 111 Spaces Moved 431 | 59 175 121 76 Core 54 | 6 . . 48 Treads . | . . . . Legs 340 | 53 175 106 6 Wheels . | . . . . Hover 37 | . . 15 22 Flight . | . . . . Fastest Speed 50 | 50 120 116 50 Average Speed 118 | 119 120 120 112 Slowest Speed 250 | 150 120 190 250 Overloaded Moves . | . . . . Propulsion Burnouts . | . . . . Robots Hopped . | . . . . Potential Cave-ins . | . . . . Cave-ins Triggered . | . . . . Exploration Rate (%) 14 | 3 30 13 11 Regions Visited 3 Branch Regions 1 Pre-discovered Areas . | . . . . Known Exits Taken . | . . . . Unknown Exits Taken 3 | 1 1 1 . Scrap Searched . | . . . . Spaces Dug . | . . . . Terrain Destroyed . | . . . . Melee . | . . . . Projectile . | . . . . AOE . | . . . . Terrain Rammed . | . . . . Walls Destroyed . | . . . . Machines Disabled . | . . . . Actions | -11 -10 -9 -9 --------- Run | Yrd Mat Mat Sto Total 518 | 70 205 146 97 Wait . | . . . . Move 429 | 58 175 120 76 Hop . | . . . . Pick Up 18 | . 12 4 2 Fast Attach 9 | 7 . 2 . Attach 8 | . . 6 2 Detach 3 | . . 2 1 Swap . | . . . . Drop 10 | . 5 2 3 Fire 32 | 5 13 10 4 Melee . | . . . . Ram . | . . . . Kick . | . . . . Crush . | . . . . Escape Stasis 9 | . . . 9 Rewire . | . . . . Trap . | . . . . Miscellaneous . | . . . . Route ------- -11/Scrapyard -10/Materials -9/Materials (discovered 2 exits: *Sto x2) -9/Storage History --------- Turn | Location | Event 11 | -11/Scrapyard | Discovered new exit (range 16) 95 | -11/Scrapyard | Entered Materials 317 | -10/Materials | Build established: Mutant 340 | -10/Materials | Discovered new exit (range 8) 356 | -10/Materials | Entered another Materials area 356 | -9/Materials | Evolved 2 slots: Utility x2 414 | -9/Materials | Discovered new exit (range 5) 424 | -9/Materials | Discovered new exit (range 6) 542 | -9/Materials | Entered Storage 638 | -9/Storage | Core integrity fell below 50% 647 | -9/Storage | Core integrity fell below 20% 652 | -9/Storage | Lost 9 parts (1p4n2u2w) 653 | -9/Storage | Destroyed by Y-45 Defender with Beam Rifle Last Messages --------------- 00626_ Dropped Sml. Storage Unit. 00632_ Connecting with Door Terminal... 00632_ Current location identified: Storage 00632_ Dropped Seismic Detector. 00633_ Acquired Prototype Engine. 00637_ Triggered Stasis Trap. 00637_ A bubble of rippling energy engulfs the area. 00637_ Field strength at 94. 00637_ Field strength at 88. 00637_ Critical hit (Burn: +26). 00638_ Field strength at 78. 00639_ Field strength at 67. 00640_ Field strength at 61. 00641_ Field strength at 47. 00642_ Field strength at 38. 00643_ Field strength at 28. 00644_ Field strength at 15. 00645_ Field strength at 4. 00646_ Stasis field depleted. Map ----- +----------------------------------------------------+ | | | | | | | | | | | | | ?????????????????????????????? | | ?????????????????????????????? | | ?????????????????????????????? | | ?????????????????????????????? | | ?????????????????????????????? | | ?????????????????????????????? | | ?????????????????????????????? | | ?????????????????????????????? | | ?????????????????????????????? | | ?????????????????????????????? | | ?????????????????????????????? | | ?????????????????????????????? | | ???????????????""????????????? | | ??????????????? ???????????? | | ???????????????? ??????????? | | ????????????????"" ?????????? | | ????????????????"" ?#######? | | ?????????????????? # #? | | ??????????????????? # #? | | ????????????????????? + @ #? | | ??????????????????????# Y #? | | ??????????????????????#u #? | | ??????????????????????##Y ##? | | ???????????????????????# #?? | | ???????????????????????# #?? | | ???????????????????????# #?? | | ???????????????????????# #?? | | ???????????????????????# #?? | | ???????????????????????# r #?? | | ???????????????????????# #?? | | ???????????????????????# #?? | | ???????????????????????# #?? | | ???????????????????????# #?? | | ???????????????????????# #?? | | ???????????????????????# #?? | | ???????????????######### #?? | | ???????????????#****" #?? | | ???????????????# ! # #?? | | ???????????????#*** " # #?? | | ???????????????######T## #?? | | ????????????????????#### #?? | | ???????????############# #?? | | ?????????### # #?? | | ?????????#"" """ """ # #?? | +----------------------------------------------------+ Best States ------------- Heat Dissipation 28 Energy Generation 10 Energy Capacity 125 Matter Stores 300 Matter Capacity 300 Sight Range 16 Terrain Scan Density 10 ECM Strength 1 Armor Coverage 150 Evasion (%) 55 Item Schematics ----------------- None Robot Schematics ------------------ None Fabricated ------------ Nothing Repaired ---------- Nothing Studied --------- None Alien Tech Used ----------------- None Achievements -------------- Use The Force Challenges ------------ None Game ------ Seed TrapBattleReconfigurator Manual? 0 Play Time 00:15:58 Cumulative 42.7 hours Start 2026.04.15 @ 10:24:05 End 2026.04.15 @ 10:44:12 Sessions 1 Manual Loads 0 Difficulty Rogue Special Mode None Game No. 26 Rogue 26 Adventurer 0 Explorer 0 Win Type - Total 0 Types 0/0/0/0/0/0/0/0/0/0 Lore% 10 Gallery% 24 Achievement% 18 Wizard Run 0 Options --------- Layout 1 ASCII 1 Keyboard 1 Movement Numpad Keybinds 0 Fullscreen 1 Font 24/Smallcaps Map View 50x35 Zoom Use 0% Tactical HUD 1 Map Filters NONE Filters NONE Steam 1 RUN: 54a28e36-b699-4ff9-8328-5d37e38dca24